Cogmind - Beta 16 @@@ ROGUE MODE // 2025.12.21 @ 01:36:11 Player: useeikick Result: Self-destructed Performance ------------- Evolutions (1) 500 Regions Visited (2) 400 Robots Destroyed (9) 45 Value Destroyed (208) 208 Prototype IDs (0) 0 Alien Tech Used (0) 0 Bonus (0) 0 TOTAL SCORE: 1153 Bonus ------- None Cogmind --------- Core Integrity 188/400 Matter 297/300 Energy 125/125 System Corruption 0% Temperature Cool (9) Movement Core (100) Ox1 Location -9/Materials Parts ------- > --- POWER (1) -------- Light Ion Engine > --- PROPULSION (3) --- (None) > --- UTILITY (3) ------ Visual Processing Unit > --- WEAPON (2) ------- Light Assault Rifle > --- INVENTORY (5) ---- Improved Heat Sink Peak State ------------ > --- POWER ------------ Light Ion Engine > --- PROPULSION ------- Hover Unit Hover Unit Flight Unit > --- UTILITY ---------- Visual Processing Unit Targeting Computer > --- WEAPON ----------- Light Assault Rifle Light Assault Rifle > --- INVENTORY -------- Light Ion Engine Flight Unit Flight Unit Improved Heat Sink [Rating: 9] Favorites ----------- Power Light Ion Engine Engine Light Ion Engine Propulsion Hover Unit Wheel Wheel Hover Unit Hover Unit Flight Unit Flight Unit Utility Visual Processing Unit Processor Visual Processing Unit Weapon Light Assault Rifle Ballistic Gun Light Assault Rifle Build | -11 -10 -9 ------- Run | Yrd Mat Mat Slots Evolved 2 | . . 2 Power . | . . . Propulsion 1 | . . 1 Utility 1 | . . 1 Weapon . | . . . Parts Attached 13 | 5 4 4 Power 2 | 1 . 1 Engine 2 | 1 . 1 Core . | . . . Reactor . | . . . Propulsion 7 | 2 2 3 Treads . | . . . Leg . | . . . Wheel 2 | 2 . . Hover 2 | . 2 . Flight 3 | . . 3 Utility 2 | . 2 . Device . | . . . Storage . | . . . Processor 2 | . 2 . Hackware . | . . . Protection . | . . . Artifact . | . . . Weapon 2 | 2 . . Energy Gun . | . . . Energy Cannon . | . . . Ballistic Gun 2 | 2 . . Ballistic Cannon . | . . . Launcher . | . . . Special Weapon . | . . . Impact Weapon . | . . . Slashing Weapon . | . . . Piercing Weapon . | . . . Special Melee Weapon . | . . . Unidentified Prototypes . | . . . Parts Lost 8 | . . 8 Power 1 | . . 1 Propulsion 5 | . . 5 Utility 1 | . . 1 Weapon 1 | . . 1 Highest Loss Streak 5 | . . 5 To Critical Strikes . | . . . Average Backups 3 | 1 4 2 Power . | . 1 . Propulsion 1 | 1 2 1 Utility . | . . 1 Weapon . | . . . Tool/Special . | . . . Unused Backups 3 | . 2 1 Power . | . . . Propulsion 2 | . 2 . Utility 1 | . . 1 Weapon . | . . . Tool/Special . | . . . Average Slot Usage (%) 81 | . 85 77 Engine 10 | . 14 6 Wheel 4 | . 8 . Hover 14 | . 19 10 Flight 8 | . . 17 Processor 17 | . 14 21 Ballistic Gun 24 | . 28 21 Peak Build Rating 9 | 5 8 9 Average Rating 7 | 4 6 7 On Entrance 4 | . 5 8 Avg Prop Armor Cover (%) 4 | . . 4 Naked Turns . | . . . Heaviest Build 5 | 5 5 5 Greatest Support 20 | 20 20 12 Greatest Overweight (x) 1 | . . 1 Average Overweight (x) . | . . . Largest Inventory Capacity 5 | 5 5 5 Average Capacity 5 | 5 5 5 Most Carried 5 | 3 5 4 Average Carried 3 | 1 4 2 Final Capacity 5 | 5 5 5 Final Carried 5 | 3 5 1 Class Distribution -------------------- 85% | Mutant 14% | Scavenger-Mutant Dominant Class ---------------- Mutant | -10/Materials Mutant | -9/Materials Resources | -11 -10 -9 ----------- Run | Yrd Mat Mat Matter Collected 393 | 195 111 87 Remotely . | . . . Salvage Created 269 | . 82 187 Parts 21 | . 4 17 Haulers Intercepted . | . . . Recyclers Shooed . | . . . Parts Field Recycled . | . . . Retrieved Matter . | . . . Parts Self-Destructed . | . . . Prevented . | . . . Parts Restored . | . . . Kills | -11 -10 -9 ------- Run | Yrd Mat Mat Combat Hostiles Destroyed 9 | . 2 7 Guns 9 | . 2 7 Classes Destroyed 3 | . 1 2 Swarmer 5 | . . 5 Grunt 2 | . 2 . Sentry 2 | . . 2 Best Kill Streak 3 | . 2 3 Combat Bots Only 3 | . 2 3 Max Kills in Single Turn 1 | . 1 1 Gunslinging . | . . . Exploded . | . . . Melee . | . . . Uniques/NPCs Destroyed . | . . . Combat | -11 -10 -9 -------- Run | Yrd Mat Mat Hostile Shots Fired 79 | . 6 73 Missed 27 | . 1 26 Hits 52 | . 5 47 Projectile 52 | . 5 47 Critical Strikes 5 | . . 5 Damage Taken 594 | . 51 543 Core 244 | . 32 212 Absorbed by Shields . | . . . Core Remaining (%) 93 | 100 87 . Volleys Fired 40 | . 8 32 Largest 2 | . 2 2 Hottest 40 | . 40 40 Shots Fired 72 | . 16 56 Gun 72 | . 16 56 Cannon . | . . . Launcher . | . . . Special . | . . . Kinetic 72 | . 16 56 Thermal . | . . . Explosive . | . . . Electromagnetic . | . . . Robot Hit Streak 7 | . 2 7 Robot Miss Streak 6 | . 4 6 Penetration Max . | . . . Secondary Targets . | . . . Shots Hit Robots 39 | . 7 32 Core Hits 15 | . 3 12 Critical Kills . | . . . Critical Parts Destroyed . | . . . Critical Strikes . | . . . Melee Attacks . | . . . Impact . | . . . Slashing . | . . . Piercing . | . . . Sneak Attacks . | . . . Combat Hostiles . | . . . Follow-up Attacks . | . . . Damage Inflicted 310 | . 50 260 Guns 310 | . 50 260 Cannons . | . . . Explosions . | . . . Melee . | . . . Ramming . | . . . Kinetic 310 | . 50 260 Thermal . | . . . Explosive . | . . . Electromagnetic . | . . . Impact . | . . . Slashing . | . . . Piercing . | . . . Highest Corruption . | . . . Average Corruption . | . . . Corruption Purged . | . . . Corruption Blocked . | . . . Overload Shots . | . . . Overflow Damage . | . . . Projectiles . | . . . Explosions . | . . . Melee . | . . . Knockbacks . | . . . Impact . | . . . Kinetic . | . . . Secondary . | . . . Self-Inflicted Damage . | . . . Shots . | . . . Rammed . | . . . Targets Rammed . | . . . Kicked . | . . . Crushed . | . . . Highest Temperature 31 | . 20 31 Average Temperature 11 | . 9 14 Received Heat Transfer 222 | . 24 198 Siege Activations . | . . . Martial Activations . | . . . Shielding Activations . | . . . Robots Disrupted . | . . . Combat Hostiles . | . . . Robots Corrupted . | . . . Combat Hostiles . | . . . Parts Fried . | . . . Impact Corruptions . | . . . Robots Melted . | . . . Combat Hostiles . | . . . Parts Melted . | . . . Heat Transferred . | . . . Parts Sabotaged . | . . . Parts Stolen . | . . . Parts Stripped . | . . . Power Chain Reactions . | . . . Alert | -11 -10 -9 ------- Run | Yrd Mat Mat Maximum Alert Level . | . . . Low Security (%) 100 | 100 100 100 Level 1 . | . . . Level 2 . | . . . Level 3 . | . . . Level 4 . | . . . Level 5 . | . . . High Security . | . . . Max Security . | . . . Peak Influence 60 | . 50 60 Initial 3 | . . 3 Average 17 | . 13 26 Influence Increases 278 | . 78 200 Destroy 0b10 Robot/C 180 | . 40 140 Destroy Leader 30 | . . 30 Successful Hack 8 | . 8 . Select Force Hacks 30 | . 30 . Partial Spotted 15 | . . 15 Lose Combat Pursuer 15 | . . 15 Influence Decreases 253 | . 70 183 Entered New Map 5 | . . 5 Time Decay 168 | . 70 98 Lost Part 80 | . . 80 Squads Dispatched 1 | . 1 . Investigation 1 | . 1 . Extermination . | . . . Reinforcement . | . . . Assault . | . . . Garrison . | . . . Intercept . | . . . Searches Triggered . | . . . Construction Impeded . | . . . Haulers Reinforced . | . . . Active Scanning Responses . | . . . Cargo Convoy Interrupts . | . . . Stealth | -11 -10 -9 --------- Run | Yrd Mat Mat Distress Signals 2 | . 1 1 Communications Jammed . | . . . Distress Signals . | . . . Times Spotted 18 | . 6 12 Peak Tracking Total 5 | . 4 5 Tactical Retreats 1 | . . 1 Traps | -11 -10 -9 ------- Run | Yrd Mat Mat Traps Triggered . | . . . Indirectly . | . . . Trap Hack Attempts . | . . . Triggered . | . . . Disarmed . | . . . Reprogrammed . | . . . Reused . | . . . Traps Extracted . | . . . Installed . | . . . Triggered . | . . . Machines | -11 -10 -9 ---------- Run | Yrd Mat Mat Machines Disabled . | . . . Max in Single Turn . | . . . Machines Repaired . | . . . Machines Dismantled . | . . . Machines Sabotaged . | . . . Overloaded Fab Kills . | . . . Hacking | -11 -10 -9 --------- Run | Yrd Mat Mat Machines Accessed 7 | . 6 1 Terminals 6 | . 5 1 Fabricators . | . . . Repair Stations . | . . . Recycling Units 1 | . 1 . Scanalyzers . | . . . Garrison Access . | . . . Total Hacks 10 | . 8 2 Successful 4 | . 3 1 Failed 6 | . 5 1 Catastrophic 2 | . 2 . Database Lockouts . | . . . Manual 9 | . 7 2 Terminals 9 | . 7 2 Fabricators . | . . . Repair Stations . | . . . Recycling Units 1 | . 1 . Scanalyzers . | . . . Garrison Access . | . . . Terminal Hacks 3 | . 2 1 Branch Access Points 2 | . 1 1 Zone Layout 1 | . 1 . Fabricator Hacks . | . . . Repair Station Hacks . | . . . Recycling Unit Hacks . | . . . Scanalyzer . | . . . Garrison Access Hacks . | . . . Unauthorized Hacks 1 | . 1 . Terminals . | . . . Fabricators . | . . . Repair Stations . | . . . Recycling Units 1 | . 1 . Tunnel 1 | . 1 . Scanalyzers . | . . . Garrison Access . | . . . Data Cores Recovered 1 | . 1 . Used . | . . . Hacking Detections 3 | . 3 . Full Trace Events . | . . . Feedback Events . | . . . Feedback Blocked . | . . . Robot Schematics Acquired . | . . . Robots Built . | . . . Authchips . | . . . Time . | . . . Total Robot Build Rating . | . . . Part Schematics Acquired . | . . . Parts Built . | . . . Authchips . | . . . Time . | . . . Total Part Build Rating . | . . . Part Studies Acquired . | . . . Parts Repaired . | . . . Time . | . . . Parts Recycled . | . . . Recycled Matter . | . . . Retrieved Matter . | . . . Retrieved Components . | . . . Parts Scanalyzed . | . . . Part Schematics Acquired . | . . . Parts Damaged . | . . . Bothacking | -11 -10 -9 ------------ Run | Yrd Mat Mat Used RIF Installer . | . . . Robots Hacked . | . . . Non-combat . | . . . Combat . | . . . Robot Hacks Applied . | . . . Relay Couplers Released . | . . . Fabnet Peak Effective % . | . . . Robots Rewired . | . . . Allies Hacked . | . . . Hacks Repelled . | . . . Allies | -11 -10 -9 -------- Run | Yrd Mat Mat Total Allies . | . . . Largest Group . | . . . Highest-Rated Group . | . . . Highest-Rated Ally . | . . . Total Orders . | . . . Ally Attacks . | . . . Total Damage . | . . . Kills . | . . . Allies Corrupted . | . . . Allies Melted . | . . . Intel | -11 -10 -9 ------- Run | Yrd Mat Mat Active Infowar (turns) 413 | . 182 231 Optics 413 | . 182 231 Robot Analysis Total . | . . . Derelict Logs Recovered . | . . . Drone Launches . | . . . Drone Recoveries . | . . . Exploration | -11 -10 -9 ------------- Run | Yrd Mat Mat Turns Passed 536 | 45 260 231 Spaces Moved 588 | 46 278 264 Core 7 | 7 . . Treads . | . . . Legs . | . . . Wheels 126 | 39 87 . Hover 311 | . 191 120 Flight 144 | . . 144 Fastest Speed 34 | 50 56 34 Average Speed 56 | 75 63 45 Slowest Speed 120 | 80 80 120 Overloaded Moves . | . . . Propulsion Burnouts . | . . . Robots Hopped . | . . . Potential Cave-ins . | . . . Cave-ins Triggered . | . . . Exploration Rate (%) 25 | 5 47 23 Regions Visited 2 Branch Regions . Pre-discovered Areas 1 | . 1 . Known Exits Taken . | . . . Unknown Exits Taken 2 | 1 1 . Scrap Searched . | . . . Spaces Dug . | . . . Terrain Destroyed . | . . . Melee . | . . . Projectile . | . . . AOE . | . . . Terrain Rammed . | . . . Walls Destroyed . | . . . Machines Disabled . | . . . Actions | -11 -10 -9 --------- Run | Yrd Mat Mat Total 731 | 53 348 330 Wait 77 | . 49 28 Move 586 | 45 277 264 Hop . | . . . Pick Up 9 | 3 6 . Fast Attach 7 | 5 2 . Attach 4 | . . 4 Detach . | . . . Swap 4 | . 2 2 Drop 4 | . 4 . Fire 40 | . 8 32 Melee . | . . . Ram . | . . . Kick . | . . . Crush . | . . . Escape Stasis . | . . . Rewire . | . . . Trap . | . . . Miscellaneous . | . . . Route ------- -11/Scrapyard -10/Materials (discovered 2 exits: *Mat / *Min) -9/Materials (discovered 2 exits: *Min x2) History --------- Turn | Location | Event 9 | -11/Scrapyard | Discovered new exit (range 15) 46 | -11/Scrapyard | Entered Materials 46 | -10/Materials | Discovered new exit (range 14) 47 | -10/Materials | Met a group of wandering Federalists 210 | -10/Materials | Lost 3 allies 262 | -10/Materials | Identified exit to Mines 278 | -10/Materials | Discovered new exit (range 13) 306 | -10/Materials | Entered another Materials area 306 | -9/Materials | Evolved 2 slots: Propulsion x1, Utility x1 423 | -9/Materials | Lost 3 parts (1p2n) 483 | -9/Materials | Identified exit to Mines 537 | -9/Materials | Self-destructed Last Messages --------------- 00482_ Connecting with Terminal... 00482_ Current location identified: Materials 00483_ Connecting with Terminal... >>Access(Branch) Found 2 branch access points: (48,49) Mines (95,84) Mines Map updated. 00485_ Acquired 10 matter. 00494_ Critical hit (Burn: +37). 00502_ W-16 Scout sends out distress signal. 00510_ S-10 Pest destroyed. 00515_ Hover Unit destroyed. 00517_ Flight Unit destroyed. 00520_ Lgt. Assault Rifle destroyed. 00522_ S-10 Pest destroyed. 00523_ Acquired 2 matter. 00529_ Targeting Computer destroyed. 00531_ Hover Unit destroyed. 00534_ Critical hit (Burn: +37). Map ----- +----------------------------------------------------+ | ????????????????????????????????????????? | | ????????????????????????????????????????? | | ????????????????????????????????????????? | | ????????????????????????????????????????? | | ????????????????????????????????????????? | | ????????????????????????????????????????? | | ????????????????????????????????????????? | | ????????????????????????????????????????? | | ????????????????????????? ????????????? | | ????????????????????????? ????????????? | | ????????????????????????? #???????????? | | ????????????????????????# #???????????? | | ????????????????????????#u #???????????? | | ????????????????????????# #???????????? | | ????????????????????????#k #???????????? | | ????????????????????????# #???????????? | | ????????????????????????# #???????????? | | ??????????????????????### +???????????? | | ?????????????????????? #???????????? | | ??????????????????????? #???????????? | | ???????????????????????? #???????????? | | ????????????#+########## ##########??? | | ???????????? ## # T #??? | | ????????????"" """ ## #""" #??? | | ???????????"R ! """ *## #""" #??? | | ????????# """ """=%##@ #""" #??? | | ????????# [*/s= + #??? | | ????????############### #""" [#??? | | ########## =! #??###Y#""" #??? | | # =! #????# #""" #??? | | # ! #????# # #??? | | # #????# ########+#??? | | ###### /%""" """ ###### ######## #??? | | ##?????# # """ R" + #??? | | ??###### # """ """ ###### ##### #??? | | ??# ## # #????# #???# #??? | | ??# ## ######+####??### ###?# #??? | | ??# ## % #????# ####### #?# #??? | | ??# ## ###### ! #?# #??? | | ??#[ ## =%! #?# #??? | | ??# ## ######### #?#### #??? | | ### ## #??########### #????# #??? | | ###+### #### #?#####+#####??? #??? | | #?# T #??? ??? | | " #?# #??? ??? | | #?# #???> ?? | | ##########+### #?# [#??? ?? | | ####???# %* ## ##############??? ?? | | #???# """ ## # #?????? ##? | | #???# """ ## # #?????? #?? | +----------------------------------------------------+ Best States ------------- Heat Dissipation 28 Energy Generation 10 Energy Capacity 125 Matter Stores 300 Matter Capacity 300 Sight Range 18 Terrain Scan Density 10 Evasion (%) 63 Targeting Accuracy 5 Item Schematics ----------------- None Robot Schematics ------------------ None Fabricated ------------ Nothing Repaired ---------- Nothing Studied --------- None Alien Tech Used ----------------- None Achievements -------------- None Challenges ------------ None Game ------ Seed PhasingBottomlessMinigun Manual? 0 Play Time 00:13:36 Cumulative 19.8 hours Start 2025.12.21 @ 01:26:13 End 2025.12.21 @ 01:36:11 Sessions 1 Manual Loads 0 Difficulty Rogue Special Mode None Game No. 40 Rogue 40 Adventurer 0 Explorer 0 Win Type - Total 0 Types 0/0/0/0/0/0/0/0/0/0 Lore% 14 Gallery% 22 Achievement% 15 Wizard Run 0 Options --------- Layout 1 ASCII 0 Keyboard 0 Movement Mouse Keybinds 0 Fullscreen 0 Font 20/SmallcapsGlow Map View 50x35 Zoom Use 0% Tactical HUD 1 Map Filters NONE Filters NONE Steam 1 RUN: 9cff6144-acf5-4661-ae21-c1482f1d7848